bitfinex/quotes_SOLUSD_20240712
["timestamp","ask_amount","ask_price","bid_price","bid_amount"]
[1720805152228,18.06,139.18,139.12,18.06]
[1720805152413,18.06,139.18,139.12,7.5132057]
[1720805152609,18.06,139.16,139.12,7.5132057]
[1720805152909,18.06,139.17,139.12,25.5732057]
[1720805153107,18.06,139.16,139.12,7.5132057]
[1720805154932,18.06,139.15,139.12,7.5132057]
[1720805155617,18.06,139.14,139.12,7.5132057]
[1720805156407,18.06,139.15,139.12,7.5132057]
[1720805156931,18.06,139.16,139.12,7.5132057]
[1720805157431,33.6701,139.17,139.12,25.5732057]
[1720805157634,18.06,139.16,139.12,7.5132057]
[1720805158107,15.6101,139.17,139.12,7.5132057]
[1720805158308,18.06,139.13,139.12,7.5132057]
[1720805158836,18.06,139.13,139.07,18.06]
[1720805159039,18.06,139.12,139.07,18.06]
[1720805159328,18.06,139.12,139.09,7.51595634]
[1720805159933,18.06,139.11,139.04,6.2954]
[1720805160135,18.06,139.1,139.05,7.51656497]
[1720805160435,18.06,139.1,139.05,25.57656497]
[1720805161137,18.06,139.09,139.05,7.51656497]
[1720805161344,15.9731,139.1,139.05,7.51656497]
[1720805161345,18.06,139.08,139.05,7.51656497]
[1720805161637,15.9731,139.1,139.01,15.5789]
[1720805161844,15.9731,139.1,139.03,25.57877126]
[1720805162129,18.06,139.08,139.03,25.57877126]
[1720805162437,18.06,139.09,139.03,25.57877126]
[1720805162926,18.06,139.09,139.03,7.51877126]
[1720805163123,18.06,139.09,139.04,18.06]
[1720805163430,18.06,139.12,139.07,18.06]
[1720805163808,18.06,139.12,139.06,18.06]
[1720805164234,6.0073,139.13,139.06,18.06]
[1720805164427,18.06,139.12,139.07,18.06]
[1720805165134,18.06,139.12,139.05,20.0]
[1720805165135,18.06,139.12,139.06,18.06]
[1720805165613,18.06,139.11,139.06,18.06]
[1720805166136,18.06,139.12,139.06,18.06]
[1720805166434,6.0073,139.13,139.05,38.06]
[1720805166731,6.0073,139.13,139.05,20.0]
[1720805167031,13.1949,139.13,139.04,20.0]
[1720805167411,6.0073,139.13,139.04,20.0]
[1720805167825,15.2981,139.14,139.05,45.0]
[1720805168134,15.2981,139.14,139.06,20.0]
[1720805169027,15.2981,139.14,139.05,20.0]
[1720805169220,15.2981,139.14,139.06,45.0]
[1720805169412,22.4852,139.14,139.07,20.0]
[1720805170126,15.2981,139.14,139.07,20.0]
[1720805170435,22.4854,139.14,139.05,20.0]
[1720805170641,15.2981,139.14,139.05,20.0]
[1720805171022,22.4851,139.14,139.05,20.0]
[1720805171229,15.2981,139.14,139.05,20.0]
[1720805171417,7.1885,139.11,139.05,20.0]
[1720805171620,7.1885,139.11,139.04,20.0]
[1720805171840,7.1885,139.11,139.03,7.51877126]
[1720805173045,7.1881,139.12,139.04,20.0]
[1720805173515,7.1885,139.11,139.04,20.0]
[1720805173917,7.1893,139.1,139.03,7.51877126]
[1720805174235,7.1896,139.09,139.03,7.51877126]
[1720805174918,7.1896,139.09,139.0,6.2954]
[1720805175113,7.1901,139.08,139.01,7.51839053]
[1720805175314,7.1912,139.06,139.01,7.51839053]
[1720805175548,15.3155,139.07,139.01,7.51839053]
[1720805175834,15.3155,139.07,139.0,7.51881206]
[1720805176240,51.4608,139.1,139.0,7.51881206]
[1720805176547,52.1896,139.09,139.0,7.51881206]
[1720805176712,15.3008,139.1,139.0,7.51881206]
[1720805177113,45.0,139.09,139.01,20.0]
[1720805177414,7.1906,139.07,139.0,7.51881206]
[1720805178035,52.1914,139.06,139.0,7.51881206]
[1720805178238,7.1916,139.05,139.0,7.51881206]
[1720805178441,13.626,139.05,138.97,8.020489]
[1720805178618,13.626,139.05,138.97,7.52023987]
[1720805179015,6.4344,139.05,138.97,7.52023987]
[1720805179738,7.1923,139.04,138.97,7.52023987]
[1720805180251,15.0129,139.02,138.97,7.52023987]
[1720805180536,15.0129,139.02,138.93,21.9292]
[1720805180918,15.0129,139.02,138.95,7.52148845]
[1720805183142,13.626,139.05,138.95,7.52148845]
[1720805183359,6.4344,139.05,138.95,7.52148845]
[1720805183513,13.6263,139.05,138.96,20.0]
[1720805183721,6.4344,139.05,138.96,20.0]
[1720805184629,6.4344,139.05,138.97,45.0]
[1720805184932,7.1923,139.04,138.96,20.0]
[1720805185136,7.1927,139.03,138.96,20.0]
[1720805185346,7.1934,139.02,138.96,20.0]
[1720805185733,7.1925,139.04,138.96,20.0]
[1720805186239,6.4344,139.05,138.96,20.0]
[1720805186432,7.1931,139.03,138.96,20.0]
[1720805186629,45.0,139.04,138.96,20.0]
[1720805187229,52.1924,139.04,138.96,20.0]
[1720805187746,7.1927,139.03,138.96,20.0]
[1720805188343,7.1922,139.04,138.96,20.0]
[1720805188652,7.1927,139.03,138.96,20.0]
[1720805189143,7.1936,139.02,138.96,20.0]
[1720805189651,7.1923,139.04,138.96,20.0]
[1720805189835,13.6263,139.05,138.96,20.0]
[1720805190144,7.1922,139.04,138.96,20.0]
[1720805190445,7.1927,139.03,138.96,20.0]
[1720805190626,7.1923,139.04,138.96,20.0]
[1720805190954,13.6262,139.05,138.96,20.0]
[1720805191242,22.2042,139.06,138.97,45.0]
[1720805191543,32.991,139.06,138.95,7.52035506]
[1720805191759,7.1929,139.03,138.96,20.0]
[1720805192321,7.1928,139.03,138.96,20.0]
[1720805192522,7.1922,139.04,138.96,20.0]
[1720805192747,7.1929,139.03,138.96,20.0]
[1720805192927,7.1932,139.02,138.96,20.0]
[1720805193725,7.1928,139.03,138.96,20.0]
[1720805193924,7.1923,139.04,138.96,20.0]
[1720805194449,7.1932,139.02,138.96,20.0]
[1720805195360,17.9805,139.04,138.95,7.52035506]
[1720805195523,7.1944,139.0,138.95,7.52035506]
[1720805195726,7.1944,139.0,138.93,21.9292]
[1720805196042,7.1944,139.0,138.93,29.44768917]
[1720805196442,7.1939,139.01,138.93,29.44768917]
[1720805196841,13.7055,139.02,138.93,29.44768917]
[1720805197233,13.7055,139.02,138.94,20.0]
[1720805198433,7.1938,139.01,138.94,20.0]
[1720805198751,7.1951,138.99,138.93,7.51848917]
[1720805198953,7.1951,138.99,138.89,31.4197]
[1720805199251,7.1951,138.99,138.91,7.51856318]
[1720805199471,7.1948,138.99,138.91,7.51856318]
[1720805199754,15.5315,139.0,138.91,7.51856318]
[1720805199927,22.7261,139.0,138.91,7.51856318]
[1720805200123,15.5315,139.0,138.92,20.0]
[1720805201427,6.5122,139.02,138.92,20.0]
[1720805201428,13.7054,139.02,138.92,20.0]
[1720805202353,7.1927,139.03,138.94,6.5724]
[1720805202534,7.1927,139.03,138.95,65.0]
[1720805202924,16.5609,139.04,138.95,20.0]
[1720805203150,7.1938,139.01,138.95,20.0]
[1720805205455,7.1943,139.0,138.95,20.0]
[1720805205861,7.1943,139.0,138.93,15.0433]
[1720805205862,7.1943,139.0,138.94,20.0]
[1720805206935,7.1939,139.01,138.94,20.0]
[1720805207542,7.1934,139.02,138.94,20.0]
[1720805210457,7.1937,139.01,138.94,20.0]
[1720805210633,18.11,138.99,138.94,38.11]
[1720805212154,18.11,138.99,138.94,20.0]
[1720805212369,18.11,138.98,138.94,20.0]
[1720805212552,7.1943,139.0,138.94,20.0]
[1720805212553,18.11,138.97,138.94,20.0]
[1720805213074,18.11,138.96,138.93,15.0433]
[1720805214164,18.11,138.95,138.92,1.66516917]
[1720805214360,18.11,138.95,138.92,21.66516917]
[1720805214538,18.11,138.95,138.92,1.66516917]
[1720805214864,7.1958,138.97,138.92,1.66516917]
[1720805214865,18.11,138.94,138.92,1.66516917]
[1720805215970,18.11,138.96,138.92,1.66516917]
[1720805216146,7.1939,139.01,138.92,18.11]
[1720805216355,18.11,138.98,138.93,18.11]
[1720805216662,7.1937,139.01,138.91,6.5227]
[1720805217654,7.1937,139.01,138.92,20.0]
[1720805218468,7.1944,139.0,138.92,20.0]
[1720805220262,7.1953,138.98,138.92,20.0]
[1720805221061,45.0,138.99,138.92,20.0]
[1720805221062,52.195,138.99,138.92,20.0]
[1720805221570,52.1949,138.99,138.92,20.0]
[1720805221874,52.1949,138.99,138.91,6.5227]
[1720805222050,45.0,138.99,138.92,20.0]
[1720805222241,7.1956,138.98,138.92,20.0]
[1720805222438,45.0,138.97,138.92,20.0]
[1720805222641,52.1958,138.97,138.92,20.0]
[1720805222855,45.0,138.97,138.92,20.0]
[1720805223864,36.23,139.0,138.92,20.0]
[1720805224168,19.42056598,139.04,138.92,20.0]
[1720805224352,7.1943,139.0,138.92,20.0]
[1720805224556,7.1951,138.99,138.92,20.0]
[1720805224862,7.1944,139.0,138.92,20.0]
[1720805225050,60.2188,139.03,138.92,20.0]
[1720805225245,7.1945,139.0,138.92,20.0]
[1720805225441,7.1939,139.01,138.92,20.0]
[1720805225751,7.1942,139.0,138.92,20.0]
[1720805226253,7.1948,138.99,138.92,20.0]
[1720805226868,7.1953,138.98,138.92,20.0]
[1720805227460,7.1949,138.99,138.92,20.0]
[1720805227656,7.1944,139.0,138.92,20.0]
[1720805227969,45.0,138.99,138.92,20.0]
[1720805229064,7.1944,139.0,138.92,20.0]
[1720805232074,7.1922,139.04,138.93,60.6796]
[1720805232378,7.1917,139.05,138.95,6.4409]
[1720805232585,7.1917,139.05,138.96,35.5333]
[1720805233090,7.1917,139.05,138.97,1.43870631]
[1720805233266,7.1917,139.05,138.96,35.5333]
[1720805233678,69.27,139.07,138.96,35.5333]
[1720805233981,7.1929,139.03,138.96,35.5333]
[1720805237973,7.1932,139.02,138.96,35.5333]
[1720805238172,52.1932,139.02,138.96,35.5333]
[1720805238371,7.1937,139.01,138.96,35.5333]
[1720805238774,18.11,139.0,138.96,35.5333]
[1720805239080,18.11,139.0,138.96,15.5333]
[1720805239384,18.11,138.99,138.95,6.4409]
[1720805239573,18.11,138.98,138.95,6.4409]
[1720805240269,45.0,139.02,138.93,15.5023]
[1720805240479,18.11,138.97,138.93,15.5023]
[1720805242667,7.1955,138.98,138.93,15.5023]
[1720805243175,45.0,138.97,138.93,15.5023]
[1720805245093,45.0,138.97,138.91,6.4907]
[1720805245294,7.1971,138.95,138.9,23.0182993]
[1720805245612,7.1973,138.94,138.87,29.77856018]
[1720805245800,45.0,138.93,138.87,29.77856018]
[1720805246094,60.8505,138.99,138.87,29.77856018]
[1720805246277,7.1967,138.96,138.87,29.77856018]
[1720805246480,45.0,138.95,138.87,29.77856018]
[1720805246674,60.8505,138.99,138.87,29.77856018]
[1720805246675,6.6236,138.99,138.87,29.77856018]
[1720805246885,6.6236,138.99,138.88,20.0]
[1720805247068,7.1958,138.97,138.88,20.0]
[1720805247277,7.1963,138.96,138.88,20.0]
[1720805247475,7.1968,138.95,138.88,20.0]
[1720805247967,45.0,138.94,138.88,20.0]
[1720805248374,7.1965,138.96,138.88,20.0]
[1720805248580,52.1969,138.95,138.88,20.0]
[1720805249084,45.0,138.95,138.88,20.0]
[1720805249469,52.1964,138.96,138.88,20.0]
[1720805250698,45.0,138.96,138.88,20.0]
[1720805250994,7.1953,138.98,138.88,20.0]
[1720805251176,7.1949,138.99,138.88,20.0]
[1720805251384,7.1949,138.99,138.89,15.5094]
[1720805251772,7.1949,138.99,138.9,20.0]
[1720805251985,36.24,139.0,138.91,6.5184]
[1720805251986,7.1944,139.0,138.91,6.5184]
[1720805252282,7.1944,139.0,138.92,15.5834]
[1720805252791,7.1939,139.01,138.92,15.5834]
[1720805253594,7.1939,139.01,138.93,1.4391811]
[1720805254502,7.1944,139.0,138.93,1.4391811]
[1720805254996,7.1944,139.0,138.92,15.5834]
[1720805255574,7.1948,138.99,138.92,15.5834]
[1720805255974,7.1942,139.0,138.92,15.5834]
[1720805256193,7.194,139.01,138.93,20.0]
[1720805256393,7.1942,139.0,138.93,20.0]
[1720805258503,54.2228,139.03,138.93,20.0]
[1720805258673,45.0,139.02,138.93,20.0]
[1720805258872,7.1948,138.99,138.93,20.0]
[1720805259786,7.1953,138.98,138.93,20.0]
[1720805260697,45.0,139.02,138.92,15.5834]
[1720805260698,7.1958,138.97,138.92,15.5834]
[1720805262285,7.1954,138.98,138.92,15.5834]
[1720805263198,7.1949,138.99,138.92,15.5834]
[1720805263499,36.24,139.03,138.93,20.0]
[1720805263680,7.1929,139.03,138.93,20.0]
[1720805264079,7.1933,139.02,138.93,20.0]
[1720805264611,18.11,139.01,138.95,18.11]
[1720805264906,18.11,139.01,138.96,18.11]
[1720805266094,25.3038,139.01,138.95,18.11]
[1720805266289,17.9822,139.03,138.93,20.0]
[1720805266496,18.11,138.98,138.93,38.11]
[1720805266695,7.1954,138.98,138.93,20.0]
[1720805266883,7.1946,139.0,138.93,20.0]
[1720805267704,7.1948,138.99,138.93,20.0]
[1720805267891,7.1953,138.98,138.93,20.0]
[1720805268093,7.195,138.99,138.93,20.0]
[1720805268297,7.1943,139.0,138.93,20.0]
[1720805268618,7.1949,138.99,138.93,20.0]
[1720805273004,7.1943,139.0,138.93,20.0]
[1720805273319,45.0,138.99,138.93,20.0]
[1720805274512,36.23,139.02,138.93,20.0]
[1720805274699,7.194,139.01,138.93,20.0]
[1720805275408,43.4234,139.02,138.93,20.0]
[1720805275615,7.1934,139.02,138.93,20.0]
[1720805276098,7.1937,139.01,138.93,20.0]
[1720805277015,7.1933,139.02,138.93,20.0]
[1720805277207,7.1933,139.02,138.94,6.1964]
[1720805278805,7.1933,139.02,138.95,35.6952]
[1720805279317,7.1909,139.07,138.97,15.6952]
[1720805279493,7.1909,139.07,138.99,6.4944]
[1720805280097,7.1911,139.06,138.99,6.4944]
[1720805280303,17.9727,139.1,139.0,15.6952]
[1720805280717,7.1911,139.06,139.0,15.6952]
[1720805281110,7.1897,139.09,139.01,20.0]
[1720805281996,7.189,139.11,139.03,16.3358]
[1720805282326,7.189,139.11,139.04,20.0]
[1720805282702,7.189,139.1,139.04,20.0]
[1720805283426,17.9676,139.14,139.04,20.0]
[1720805283627,7.1896,139.09,139.04,20.0]
[1720805284301,7.1892,139.1,139.04,20.0]
[1720805284620,7.1901,139.08,139.03,16.3358]
[1720805285295,54.2004,139.12,139.03,16.3358]
[1720805285500,7.1911,139.06,139.03,16.3358]
[1720805285914,7.1911,139.06,139.02,6.2772]
[1720805287129,45.0,139.05,139.02,6.2772]
[1720805287421,7.1902,139.08,139.02,6.2772]
[1720805287594,45.0,139.07,139.02,6.2772]
[1720805288118,7.1909,139.07,139.02,6.2772]
[1720805288498,18.1,139.05,139.02,6.2772]
[1720805288898,18.1,139.06,139.02,6.2772]
[1720805289128,40.3497,139.14,139.02,24.3772]
[1720805289335,18.1,139.07,139.02,24.3772]
[1720805289628,18.1,139.08,139.02,24.3772]
[1720805290703,18.1,139.08,139.03,18.1]
[1720805290904,18.1,139.08,139.02,24.3772]
[1720805292510,25.2901,139.08,139.02,24.3772]
[1720805293108,18.1,139.08,139.02,24.3772]
[1720805293314,7.1898,139.09,139.03,33.59]
[1720805293529,18.1,139.09,139.04,18.1]
[1720805293820,18.1,139.09,139.03,15.49]
[1720805293821,7.1886,139.11,139.05,18.1]
[1720805294124,18.1,139.1,139.05,18.1]
[1720805294337,18.1,139.09,139.04,18.1]
[1720805294628,18.1,139.08,139.03,15.49]
[1720805294825,18.1,139.08,139.03,33.59]
[1720805295210,18.1,139.07,139.03,15.49]
[1720805295917,18.1,139.06,139.03,15.49]
[1720805296228,18.1,139.05,139.03,15.49]
[1720805296428,7.1903,139.08,139.03,15.49]
[1720805297310,7.1897,139.09,139.03,15.49]
[1720805297514,7.1892,139.1,139.03,15.49]
[1720805297713,45.0,139.09,139.03,15.49]
[1720805298634,52.1896,139.09,139.03,15.49]
[1720805299032,7.1901,139.08,139.03,15.49]
[1720805300315,52.1898,139.09,139.03,15.49]
[1720805300813,7.1901,139.08,139.03,15.49]
[1720805301437,7.1907,139.07,139.03,15.49]
[1720805301639,7.1912,139.06,139.03,15.49]
[1720805301821,52.192,139.05,138.99,15.7694]
[1720805302136,7.1918,139.05,138.99,15.7694]
[1720805302450,7.1913,139.06,138.99,15.7694]
[1720805302818,7.1917,139.05,138.99,15.7694]
[1720805303639,7.1923,139.04,138.99,15.7694]
[1720805303845,7.1916,139.06,138.99,15.7694]
[1720805305329,7.1907,139.07,138.99,15.7694]
[1720805306043,7.1902,139.08,138.99,15.7694]
[1720805306217,81.19,139.09,138.99,15.7694]
[1720805307025,7.1904,139.08,138.99,15.7694]
[1720805307246,7.1906,139.07,138.99,15.7694]
[1720805308662,7.1903,139.08,138.99,15.7694]
[1720805309051,7.1907,139.07,138.99,15.7694]
[1720805309241,7.1913,139.06,138.99,15.7694]
[1720805309948,81.19,139.09,138.99,15.7694]
[1720805310336,7.1903,139.08,138.99,15.7694]
[1720805311765,7.1906,139.07,138.99,15.7694]
[1720805312367,7.1912,139.06,138.99,15.7694]
[1720805313058,7.1907,139.07,138.99,15.7694]
[1720805314450,7.1912,139.06,138.99,15.7694]
[1720805316260,7.1907,139.07,138.99,15.7694]
[1720805316560,18.1,139.06,139.0,18.1]
[1720805319964,18.1,139.04,138.99,15.7694]
[1720805320148,18.1,139.03,138.99,15.7694]
[1720805321168,17.9765,139.08,138.99,15.7694]
[1720805321169,18.1,139.04,138.99,15.7694]
[1720805321945,7.1903,139.08,139.0,18.1]
[1720805322134,18.1,139.06,139.01,18.1]
[1720805322843,18.1,139.06,139.0,18.1]
[1720805323549,18.1,139.04,138.99,15.7694]
[1720805323964,18.1,139.03,138.99,15.7694]
[1720805324145,18.1,139.04,138.99,15.7694]
[1720805324339,18.1,139.04,138.99,33.8694]
[1720805324541,18.1,139.04,138.99,15.7694]
[1720805325069,18.1,139.04,138.99,33.8694]
[1720805325448,18.1,139.05,139.0,18.1]
[1720805325847,18.1,139.06,139.0,18.1]
[1720805326066,18.1,139.05,139.0,18.1]
[1720805326944,18.1,139.04,138.99,15.7694]
[1720805327144,18.1,139.04,138.99,33.8694]
[1720805328066,18.1,139.05,139.0,18.1]
[1720805328465,18.1,139.05,138.99,33.8694]
[1720805328640,18.1,139.05,139.0,18.1]
[1720805329469,18.1,139.06,139.0,18.1]
[1720805330071,5.9596872,139.15,139.01,15.7778]
[1720805330279,18.1,139.11,139.06,15.4513]
[1720805330642,18.1,139.1,139.06,15.4513]
[1720805330844,18.1,139.09,139.06,15.4513]
[1720805331152,18.1,139.08,139.06,15.4513]
[1720805331354,18.1,139.09,139.06,15.4513]
[1720805331573,18.1,139.1,139.06,15.4513]
[1720805331755,18.1,139.09,139.06,15.4513]
[1720805332765,7.1876,139.13,139.06,15.4513]
[1720805332976,18.1,139.1,139.06,16.88933718]
[1720805333545,7.1876,139.13,139.06,16.88933718]
[1720805333546,18.1,139.11,139.06,33.5513]
[1720805333756,15.4969,139.17,139.07,19.53798901]
[1720805333971,15.4969,139.17,139.08,18.1]
[1720805333972,18.1,139.13,139.08,18.1]
[1720805334271,18.1,139.13,139.08,19.53557596]
[1720805334476,18.1,139.13,139.08,18.1]
[1720805335474,7.1862,139.16,139.08,18.1]
[1720805335660,18.1,139.14,139.08,18.1]
[1720805336571,52.1864,139.15,139.07,1.43772858]
[1720805337357,36.15,139.19,139.07,1.43772858]
[1720805337562,36.15,139.19,139.09,15.8087]
[1720805337853,7.1859,139.16,139.09,15.8087]
[1720805339077,7.1866,139.15,139.09,15.8087]
[1720805340578,7.186,139.16,139.09,15.8087]
[1720805340764,45.0,139.15,139.09,15.8087]
[1720805342989,7.1856,139.17,139.09,15.8087]
[1720805343289,7.185,139.18,139.1,1.42494771]
[1720805343465,45.0,139.17,139.11,1.43750147]
[1720805343985,45.0,139.17,139.11,0.44966915]
[1720805344191,45.0,139.17,139.1,20.0]
[1720805344365,45.0,139.17,139.11,1.43747834]
[1720805344566,52.1856,139.17,139.1,20.0]
[1720805345593,7.1844,139.19,139.11,1.43748671]
[1720805346185,7.184,139.2,139.1,20.0]
[1720805346683,7.1834,139.21,139.11,21.7488]
[1720805347077,7.184,139.2,139.12,1.43718925]
[1720805348098,7.1834,139.21,139.12,1.43718925]
[1720805348385,7.182,139.24,139.15,15.3514]
[1720805348585,7.182,139.24,139.16,21.43677614]
[1720805349463,7.1824,139.23,139.16,21.43677614]
[1720805349668,7.1819,139.24,139.16,20.0]
[1720805350290,7.1819,139.24,139.17,1.29946333]
[1720805350470,7.1819,139.24,139.18,1.29936996]
[1720805350670,7.1819,139.24,139.17,1.43673921]
[1720805350870,7.1819,139.24,139.18,1.43663612]
[1720805351079,7.1819,139.24,139.17,1.43663612]
[1720805351287,7.1814,139.25,139.18,1.43653289]
[1720805352485,7.1814,139.25,139.19,22.968]
[1720805352682,7.1814,139.25,139.2,1.43632684]
[1720805352994,7.183,139.22,139.19,22.968]
[1720805353175,7.183,139.22,139.14,20.0]
[1720805353176,45.0,139.24,139.15,22.968]
[1720805353369,7.1842,139.2,139.15,22.968]
[1720805353872,78.5356,139.24,139.15,22.968]
[1720805353873,7.1835,139.21,139.15,22.968]
[1720805354269,78.5356,139.24,139.15,22.968]
[1720805354270,7.184,139.2,139.15,22.968]
[1720805355197,36.15,139.22,139.15,22.968]
[1720805355375,45.0,139.21,139.11,22.968]
[1720805355571,36.15,139.19,139.11,22.968]
[1720805355778,36.15,139.19,139.06,7.51177644]
[1720805355779,62.9626,139.18,139.07,22.9499]
[1720805355987,7.1875,139.14,139.07,22.9499]
[1720805356394,7.1866,139.15,139.07,22.9499]
[1720805356601,45.0,139.14,139.07,22.9499]
[1720805357188,45.0,139.15,139.07,22.9499]
[1720805358240,7.1856,139.17,139.07,22.9499]
[1720805358494,45.0,139.16,139.08,20.0]
[1720805358694,45.0,139.17,139.08,20.0]
[1720805359193,7.1841,139.2,139.1,15.0839]
[1720805359495,7.1844,139.19,139.11,20.0]
[1720805361305,7.185,139.18,139.11,20.0]
[1720805361480,45.0,139.17,139.11,20.0]
[1720805361896,52.1857,139.17,139.1,15.0839]
[1720805362709,45.0,139.17,139.1,15.0839]
[1720805363101,45.0,139.18,139.1,15.0839]
[1720805363487,52.1849,139.18,139.1,15.0839]
[1720805363687,7.1854,139.17,139.1,15.0839]
[1720805363907,45.0,139.16,139.1,15.0839]
[1720805364416,45.0,139.17,139.1,15.0839]
[1720805364614,45.0,139.18,139.1,15.0839]
[1720805365314,52.185,139.18,139.1,15.0839]
[1720805365510,45.0,139.18,139.1,15.0839]
[1720805366413,52.185,139.18,139.1,15.0839]
[1720805366986,7.1854,139.17,139.1,15.0839]
[1720805367191,45.0,139.18,139.1,15.0839]
[1720805367192,45.0,139.16,139.1,15.0839]
[1720805367396,7.1862,139.16,139.1,15.0839]
[1720805367614,45.0,139.15,139.1,15.0839]
[1720805368009,45.0,139.16,139.1,15.0839]
[1720805368206,7.1865,139.15,139.1,15.0839]
[1720805368397,45.0,139.14,139.1,15.0839]
[1720805369802,7.1855,139.17,139.1,15.0839]
[1720805370106,45.0,139.16,139.1,15.0839]
[1720805372608,45.0,139.16,139.07,14.04007537]
[1720805372609,97.5497,139.16,139.07,30.00707537]
[1720805372797,7.1884,139.12,139.07,22.501]
[1720805372997,45.0,139.11,139.07,22.501]
[1720805373309,52.1887,139.11,139.04,7.50593769]
[1720805373514,52.1887,139.11,139.03,15.967]
[1720805373920,52.1887,139.11,139.04,20.0]
[1720805375311,45.0,139.11,139.04,20.0]
[1720805377121,7.1886,139.11,139.04,20.0]
[1720805377298,52.1891,139.1,139.03,15.967]
[1720805377502,45.0,139.09,139.03,15.967]
[1720805380029,52.1896,139.09,139.03,15.967]
[1720805381407,45.0,139.09,139.03,15.967]
[1720805382012,52.1898,139.09,139.03,15.967]
[1720805382238,7.1901,139.08,139.03,15.967]
[1720805382438,45.0,139.09,139.02,14.04730247]
[1720805382603,18.1,139.03,139.02,6.5406]
[1720805384620,7.1902,139.08,139.02,6.5406]
[1720805384819,45.0,139.07,139.02,6.5406]
[1720805385032,7.1898,139.09,139.02,6.5406]
[1720805385532,7.1892,139.1,139.02,6.5406]
[1720805386035,7.1896,139.09,139.02,6.5406]
[1720805386415,7.1892,139.1,139.02,6.5406]
[1720805387536,7.1897,139.09,139.02,6.5406]
[1720805387718,7.1901,139.08,139.02,6.5406]
[1720805388249,7.1907,139.07,139.02,6.5406]
[1720805388435,7.1912,139.06,139.02,6.5406]
[1720805390109,7.192,139.05,139.02,6.5406]
[1720805390310,7.1913,139.06,139.0,16.2996]
[1720805390827,7.1908,139.07,139.0,16.2996]
[1720805391314,7.1911,139.06,139.0,16.2996]
[1720805391635,7.1908,139.07,139.0,16.2996]
[1720805391845,7.1902,139.08,139.0,16.2996]
[1720805392406,7.1907,139.07,139.0,16.2996]
[1720805392631,7.1904,139.08,139.0,16.2996]
[1720805393020,7.1907,139.07,139.0,16.2996]
[1720805393629,7.1911,139.06,139.0,16.2996]
[1720805394443,7.1916,139.05,139.0,16.2996]
[1720805394940,7.1908,139.07,139.0,16.2996]
[1720805395412,7.1902,139.08,139.0,16.2996]
[1720805395926,7.1898,139.09,139.0,16.2996]
[1720805396247,7.1902,139.08,139.0,16.2996]
[1720805396407,7.1907,139.07,139.0,16.2996]
[1720805397240,7.1911,139.06,139.0,16.2996]
[1720805397435,7.1916,139.05,139.0,16.2996]
[1720805398246,7.1923,139.04,139.0,16.2996]
[1720805398738,7.1918,139.05,139.0,16.2996]
[1720805398913,7.1911,139.06,139.0,16.2996]